[Event "*** Titled Tuesday Blitz"]
[Site "Chess.com"]
[Date "2019.12.03"]
[Round "4"]
[White "vova-79"]
[Black "Azatic"]
[Result "1-0"]
[WhiteElo "2489"]
[BlackElo "2623"]
[TimeControl "180+2"]
[EndTime "13:53:44 PST"]
[Termination "vova-79 won by checkmate"]

1. d4 {[%clk 0:03:01.9]} 1... Nf6 {[%clk 0:03:00.3]} 2. c4 {[%clk 0:03:02.2]}
2... g6 {[%clk 0:03:01.5]} 3. Nf3 {[%clk 0:03:01.8]} 3... Bg7 {[%clk 0:03:02.9]}
4. g3 {[%clk 0:03:02.3]} 4... O-O {[%clk 0:03:04.8]} 5. Bg2 {[%clk 0:03:02.6]}
5... d6 {[%clk 0:03:06.3]} 6. Nc3 {[%clk 0:03:02.5]} 6... Nc6 {[%clk 0:03:07.6]}
7. O-O {[%clk 0:03:02.1]} 7... a6 {[%clk 0:03:09]} 8. Qd3 {[%clk 0:03:01.7]}
8... e5 {[%clk 0:03:04]} 9. dxe5 {[%clk 0:02:53.2]} 9... Nxe5 {[%clk 0:03:04.8]}
10. Nxe5 {[%clk 0:02:20.8]} 10... dxe5 {[%clk 0:03:06.7]} 11. Qxd8 {[%clk
0:02:21.5]} 11... Rxd8 {[%clk 0:03:08.6]} 12. Bg5 {[%clk 0:02:22.4]} 12... Re8
{[%clk 0:03:08.5]} 13. Nd5 {[%clk 0:02:17.7]} 13... Nxd5 {[%clk 0:03:07.4]} 14.
cxd5 {[%clk 0:02:18.8]} 14... Bd7 {[%clk 0:03:05.3]} 15. Rac1 {[%clk 0:02:13.4]}
15... Rac8 {[%clk 0:03:05.8]} 16. d6 {[%clk 0:02:11.3]} 16... cxd6 {[%clk
0:03:02]} 17. Bxb7 {[%clk 0:02:09]} 17... Rb8 {[%clk 0:02:54.9]} 18. Rc7 {[%clk
0:01:59.1]} 18... Be6 {[%clk 0:02:50.5]} 19. b3 {[%clk 0:01:58.6]} 19... d5
{[%clk 0:02:33.5]} 20. Bxa6 {[%clk 0:01:36.3]} 20... Ra8 {[%clk 0:02:34.3]} 21.
Bb5 {[%clk 0:01:36.7]} 21... Rec8 {[%clk 0:02:22.5]} 22. Rxc8+ {[%clk
0:01:34.3]} 22... Rxc8 {[%clk 0:02:24.4]} 23. Rc1 {[%clk 0:01:33.9]} 23... Rb8
{[%clk 0:02:25.8]} 24. a4 {[%clk 0:01:06]} 24... h6 {[%clk 0:02:26.7]} 25. Be7
{[%clk 0:01:02.2]} 25... d4 {[%clk 0:02:22.1]} 26. b4 {[%clk 0:01:00.6]} 26...
Bf8 {[%clk 0:02:01.8]} 27. Bxf8 {[%clk 0:00:55.6]} 27... Kxf8 {[%clk 0:02:03.7]}
28. f4 {[%clk 0:00:55.9]} 28... exf4 {[%clk 0:02:01.2]} 29. gxf4 {[%clk
0:00:56.1]} 29... Ke7 {[%clk 0:02:02]} 30. Rc5 {[%clk 0:00:49.9]} 30... Kd6
{[%clk 0:01:58.6]} 31. a5 {[%clk 0:00:44.9]} 31... Bd7 {[%clk 0:01:45.1]} 32.
Bxd7 {[%clk 0:00:40.8]} 32... Kxd7 {[%clk 0:01:33.5]} 33. Rd5+ {[%clk
0:00:40.5]} 33... Kc6 {[%clk 0:01:31.4]} 34. Rxd4 {[%clk 0:00:40.3]} 34... Kb5
{[%clk 0:01:33.3]} 35. Rd7 {[%clk 0:00:30.5]} 35... Kxb4 {[%clk 0:01:23.8]} 36.
a6 {[%clk 0:00:29.8]} 36... Re8 {[%clk 0:01:20.9]} 37. a7 {[%clk 0:00:22.6]}
37... Kc5 {[%clk 0:01:18.2]} 38. Rxf7 {[%clk 0:00:20.2]} 38... g5 {[%clk
0:01:16.1]} 39. f5 {[%clk 0:00:19.2]} 39... Kd6 {[%clk 0:01:17.2]} 40. Kf2
{[%clk 0:00:17.1]} 40... Ke5 {[%clk 0:01:17.4]} 41. Kf3 {[%clk 0:00:16.9]} 41...
h5 {[%clk 0:01:18.2]} 42. h3 {[%clk 0:00:17]} 42... Rg8 {[%clk 0:01:17.7]} 43.
e3 {[%clk 0:00:15.3]} 43... Rc8 {[%clk 0:01:12.7]} 44. f6 {[%clk 0:00:14.2]}
44... Ke6 {[%clk 0:01:09.7]} 45. Rb7 {[%clk 0:00:13.8]} 45... Ra8 {[%clk
0:01:10.5]} 46. f7 {[%clk 0:00:13.5]} 46... Kf6 {[%clk 0:01:11]} 47. Rb8 {[%clk
0:00:11.4]} 47... g4+ {[%clk 0:01:11.6]} 48. hxg4 {[%clk 0:00:09.9]} 48... hxg4+
{[%clk 0:01:13.5]} 49. Kxg4 {[%clk 0:00:10]} 49... Rxa7 {[%clk 0:01:15.4]} 50.
f8=Q+ {[%clk 0:00:09.1]} 50... Ke6 {[%clk 0:01:17.3]} 51. Rb6+ {[%clk
0:00:09.2]} 51... Kd5 {[%clk 0:01:16.1]} 52. Qf5+ {[%clk 0:00:08.6]} 52... Kc4
{[%clk 0:01:16.1]} 53. Rc6+ {[%clk 0:00:08.5]} 53... Kb4 {[%clk 0:01:15.9]} 54.
Qc5+ {[%clk 0:00:08.1]} 54... Kb3 {[%clk 0:01:16.1]} 55. Qxa7 {[%clk 0:00:07.6]}
55... Kb4 {[%clk 0:01:18]} 56. Qb7+ {[%clk 0:00:08.5]} 56... Ka4 {[%clk
0:01:19.2]} 57. Ra6# {[%clk 0:00:10.4]} 1-0

[Event "*** Titled Tuesday Blitz"]
[Site "Chess.com"]
[Date "2019.12.03"]
[Round "4"]
[White "Zq1"]
[Black "Korchmar_Vasiliy"]
[Result "0-1"]
[WhiteElo "2528"]
[BlackElo "2750"]
[TimeControl "180+2"]
[EndTime "13:53:50 PST"]
[Termination "Korchmar_Vasiliy won by resignation"]

1. d4 {[%clk 0:03:01.9]} 1... Nf6 {[%clk 0:03:00.6]} 2. c4 {[%clk 0:03:01.3]}
2... g6 {[%clk 0:03:01.9]} 3. Nc3 {[%clk 0:03:02]} 3... d5 {[%clk 0:03:02.5]} 4.
cxd5 {[%clk 0:03:01.9]} 4... Nxd5 {[%clk 0:03:04.4]} 5. Bd2 {[%clk 0:03:03.1]}
5... Bg7 {[%clk 0:03:04.8]} 6. Nf3 {[%clk 0:02:59.2]} 6... Nb6 {[%clk
0:03:04.4]} 7. Bg5 {[%clk 0:02:57.6]} 7... h6 {[%clk 0:03:03.4]} 8. Bf4 {[%clk
0:02:58.7]} 8... O-O {[%clk 0:02:59.3]} 9. e3 {[%clk 0:02:59.3]} 9... c5 {[%clk
0:02:42.6]} 10. dxc5 {[%clk 0:02:58.4]} 10... Bxc3+ {[%clk 0:02:44.3]} 11. bxc3
{[%clk 0:02:58.8]} 11... Nd5 {[%clk 0:02:18.6]} 12. Bxh6 {[%clk 0:02:57.8]}
12... Nxc3 {[%clk 0:02:19.7]} 13. Qc2 {[%clk 0:02:38.7]} 13... Qa5 {[%clk
0:02:20.7]} 14. Qd2 {[%clk 0:01:57.7]} 14... Rd8 {[%clk 0:02:16.3]} 15. Nd4
{[%clk 0:01:51.3]} 15... e5 {[%clk 0:02:17.3]} 16. Bg5 {[%clk 0:01:38.7]} 16...
exd4 {[%clk 0:02:00]} 17. Bxd8 {[%clk 0:01:37.8]} 17... Qxd8 {[%clk 0:02:01.9]}
18. Qxd4 {[%clk 0:01:30.2]} 18... Qa5 {[%clk 0:02:02.9]} 19. Qd2 {[%clk
0:01:30.3]} 19... Nc6 {[%clk 0:02:03.7]} 20. Rc1 {[%clk 0:01:26.7]} 20... Nxa2
{[%clk 0:01:42.5]} 21. Qxa5 {[%clk 0:01:26.5]} 21... Nxa5 {[%clk 0:01:44.4]} 22.
Ra1 {[%clk 0:01:27]} 22... Be6 {[%clk 0:01:46]} 23. Bd3 {[%clk 0:01:09.6]} 23...
Nb4 {[%clk 0:01:44.6]} 24. Rxa5 {[%clk 0:00:50.8]} 24... Nxd3+ {[%clk
0:01:45.4]} 25. Ke2 {[%clk 0:00:49.3]} 25... Bc4 {[%clk 0:01:46.7]} 26. Kf3
{[%clk 0:00:45.7]} 26... a6 {[%clk 0:01:38.6]} 27. e4 {[%clk 0:00:46.4]} 27...
Rc8 {[%clk 0:01:38.9]} 28. Ke3 {[%clk 0:00:42.3]} 28... Nxc5 {[%clk 0:01:32.9]}
29. Rd1 {[%clk 0:00:39.6]} 29... b6 {[%clk 0:01:19]} 30. Ra3 {[%clk 0:00:38.5]}
30... a5 {[%clk 0:01:19.6]} 31. Rd6 {[%clk 0:00:35.8]} 31... Rb8 {[%clk
0:01:18]} 32. Rc3 {[%clk 0:00:26.5]} 32... Be6 {[%clk 0:01:12]} 33. h3 {[%clk
0:00:19.8]} 33... a4 {[%clk 0:01:13.1]} 34. f4 {[%clk 0:00:20.1]} 34... Bb3
{[%clk 0:01:09.6]} 35. Rc1 {[%clk 0:00:11.9]} 35... a3 {[%clk 0:01:09.9]} 36.
Ra1 {[%clk 0:00:13]} 36... a2 {[%clk 0:01:11.2]} 37. g4 {[%clk 0:00:12.3]} 37...
Na6 {[%clk 0:00:59.3]} 38. Rd3 {[%clk 0:00:09.4]} 38... Bc2 {[%clk 0:00:55.4]}
39. Rc3 {[%clk 0:00:07]} 39... Bb1 {[%clk 0:00:55.7]} 40. Rb3 {[%clk 0:00:07.3]}
40... Nc5 {[%clk 0:00:55.7]} 41. Rbxb1 {[%clk 0:00:07.9]} 41... axb1=Q {[%clk
0:00:57.3]} 42. Rxb1 {[%clk 0:00:09.6]} 42... b5 {[%clk 0:00:58.8]} 43. Kd4
{[%clk 0:00:10.8]} 43... Ne6+ {[%clk 0:00:59.3]} 44. Ke5 {[%clk 0:00:11.5]}
44... b4 {[%clk 0:00:59.8]} 45. f5 {[%clk 0:00:12.9]} 45... gxf5 {[%clk
0:00:59.5]} 46. gxf5 {[%clk 0:00:13.7]} 46... Nc5 {[%clk 0:00:59.4]} 47. Kd5
{[%clk 0:00:15]} 47... Na4 {[%clk 0:00:58.4]} 48. Rb3 {[%clk 0:00:16.1]} 48...
Nc3+ {[%clk 0:00:57]} 49. Kd4 {[%clk 0:00:17.2]} 49... Nb5+ {[%clk 0:00:41.2]}
50. Kc5 {[%clk 0:00:16.5]} 50... Nc3 {[%clk 0:00:42]} 51. Kd4 {[%clk 0:00:17.7]}
51... Rd8+ {[%clk 0:00:40.6]} 52. Ke3 {[%clk 0:00:16.5]} 52... Re8 {[%clk
0:00:40.6]} 53. e5 {[%clk 0:00:13.7]} 53... Rxe5+ {[%clk 0:00:40.8]} 54. Kd3
{[%clk 0:00:14.8]} 54... Nd5 {[%clk 0:00:37.1]} 55. Kd4 {[%clk 0:00:13.7]} 55...
Rxf5 {[%clk 0:00:38.3]} 56. Ke4 {[%clk 0:00:15]} 56... Rh5 {[%clk 0:00:39.3]}
0-1

[Event "*** Titled Tuesday Blitz"]
[Site "Chess.com"]
[Date "2019.12.03"]
[Round "4"]
[White "ShahMatKanal"]
[Black "MathiasWomacka"]
[Result "1-0"]
[WhiteElo "2487"]
[BlackElo "2318"]
[TimeControl "180+2"]
[EndTime "13:53:55 PST"]
[Termination "ShahMatKanal won by resignation"]

1. e4 {[%clk 0:03:01.9]} 1... c5 {[%clk 0:03:01]} 2. Nc3 {[%clk 0:02:51.7]} 2...
Nc6 {[%clk 0:03:01.3]} 3. Bb5 {[%clk 0:02:50.9]} 3... Nd4 {[%clk 0:03:01.7]} 4.
Nge2 {[%clk 0:02:51.2]} 4... Nxb5 {[%clk 0:03:01.4]} 5. Nxb5 {[%clk 0:02:53.1]}
5... Nf6 {[%clk 0:02:53.3]} 6. Nbc3 {[%clk 0:02:35.7]} 6... d5 {[%clk
0:02:49.5]} 7. d3 {[%clk 0:01:50.7]} 7... dxe4 {[%clk 0:02:39.2]} 8. Nxe4 {[%clk
0:01:51.2]} 8... Nxe4 {[%clk 0:02:39.5]} 9. dxe4 {[%clk 0:01:53.1]} 9... Qxd1+
{[%clk 0:02:40.5]} 10. Kxd1 {[%clk 0:01:55]} 10... b6 {[%clk 0:02:34.9]} 11. f3
{[%clk 0:01:32.4]} 11... g6 {[%clk 0:02:27.2]} 12. Bd2 {[%clk 0:01:28.8]} 12...
Bb7 {[%clk 0:02:19.8]} 13. Bc3 {[%clk 0:01:28.7]} 13... O-O-O+ {[%clk
0:02:18.8]} 14. Ke1 {[%clk 0:01:25.2]} 14... f6 {[%clk 0:02:20]} 15. Kf2 {[%clk
0:01:20.6]} 15... Bh6 {[%clk 0:02:12.2]} 16. Rad1 {[%clk 0:01:20.6]} 16... Rxd1
{[%clk 0:02:02.1]} 17. Rxd1 {[%clk 0:01:22.5]} 17... Rd8 {[%clk 0:02:03.3]} 18.
Rxd8+ {[%clk 0:01:23.7]} 18... Kxd8 {[%clk 0:02:05.2]} 19. Ke1 {[%clk
0:01:13.2]} 19... Kd7 {[%clk 0:02:02]} 20. Bd2 {[%clk 0:01:13.2]} 20... Bf8
{[%clk 0:01:57.7]} 21. Bf4 {[%clk 0:01:08.9]} 21... g5 {[%clk 0:01:50.5]} 22.
Be3 {[%clk 0:01:02.7]} 22... g4 {[%clk 0:01:45.8]} 23. Ng3 {[%clk 0:00:51.7]}
23... gxf3 {[%clk 0:01:45.8]} 24. gxf3 {[%clk 0:00:52.5]} 24... e6 {[%clk
0:01:40.2]} 25. Bf4 {[%clk 0:00:49.1]} 25... f5 {[%clk 0:01:30.1]} 26. Ke2
{[%clk 0:00:43.5]} 26... Bg7 {[%clk 0:01:27]} 27. c3 {[%clk 0:00:37]} 27... fxe4
{[%clk 0:01:21.6]} 28. Nxe4 {[%clk 0:00:37.1]} 28... Bd5 {[%clk 0:01:05.9]} 29.
a3 {[%clk 0:00:35.2]} 29... a5 {[%clk 0:01:05.3]} 30. Ng5 {[%clk 0:00:28.6]}
30... h5 {[%clk 0:00:52.9]} 31. Nf7 {[%clk 0:00:29.2]} 31... a4 {[%clk
0:00:39.8]} 32. Ne5+ {[%clk 0:00:29.9]} 32... Ke8 {[%clk 0:00:40.2]} 33. Nd3
{[%clk 0:00:26.4]} 33... Bb3 {[%clk 0:00:38.6]} 34. Ke3 {[%clk 0:00:25]} 34...
Bf6 {[%clk 0:00:34.6]} 35. Bc7 {[%clk 0:00:23.9]} 35... Bd8 {[%clk 0:00:23.6]}
36. Bxd8 {[%clk 0:00:25.3]} 36... Kxd8 {[%clk 0:00:25.5]} 37. Nf4 {[%clk
0:00:26.8]} 37... h4 {[%clk 0:00:24.7]} 38. Ng2 {[%clk 0:00:27.9]} 38... Ke7
{[%clk 0:00:19.3]} 39. Nxh4 {[%clk 0:00:28.5]} 39... Kf6 {[%clk 0:00:20.9]} 40.
f4 {[%clk 0:00:28.5]} 40... Bd5 {[%clk 0:00:21.4]} 41. Nf3 {[%clk 0:00:25]}
41... Kf5 {[%clk 0:00:22.2]} 42. Ne5 {[%clk 0:00:24.4]} 42... Bg2 {[%clk
0:00:19.7]} 43. Nd7 {[%clk 0:00:24.9]} 43... b5 {[%clk 0:00:14.7]} 44. Nxc5
{[%clk 0:00:25.7]} 44... Bf1 {[%clk 0:00:16.1]} 45. Ne4 {[%clk 0:00:22.9]} 45...
Kg4 {[%clk 0:00:15.8]} 46. Ng5 {[%clk 0:00:21]} 46... Bc4 {[%clk 0:00:16.2]} 47.
h3+ {[%clk 0:00:20.2]} 47... Kh4 {[%clk 0:00:17.3]} 48. Ke4 {[%clk 0:00:20.5]}
48... Bf1 {[%clk 0:00:17.3]} 49. Ke5 {[%clk 0:00:20.9]} 49... Bxh3 {[%clk
0:00:18.5]} 50. Nxh3 {[%clk 0:00:21.7]} 50... Kxh3 {[%clk 0:00:20.4]} 51. Kxe6
{[%clk 0:00:23]} 51... Kg4 {[%clk 0:00:21.1]} 52. f5 {[%clk 0:00:24.1]} 1-0

[Event "*** Titled Tuesday Blitz"]
[Site "Chess.com"]
[Date "2019.12.03"]
[Round "4"]
[White "Sergey85Rodchenkov"]
[Black "Firouzja2003"]
[Result "0-1"]
[WhiteElo "2444"]
[BlackElo "3152"]
[TimeControl "180+2"]
[EndTime "13:53:58 PST"]
[Termination "Firouzja2003 won by checkmate"]

1. e4 {[%clk 0:02:59.4]} 1... e5 {[%clk 0:03:00.9]} 2. Nf3 {[%clk 0:02:58.3]}
2... Nc6 {[%clk 0:03:02.1]} 3. Bc4 {[%clk 0:02:58.6]} 3... Bc5 {[%clk
0:03:02.7]} 4. c3 {[%clk 0:02:59.4]} 4... Nf6 {[%clk 0:03:03.8]} 5. d3 {[%clk
0:03:00.2]} 5... d6 {[%clk 0:03:04.8]} 6. O-O {[%clk 0:03:00.9]} 6... O-O {[%clk
0:03:06.2]} 7. Nbd2 {[%clk 0:02:58.3]} 7... a5 {[%clk 0:03:06.1]} 8. a4 {[%clk
0:02:56.5]} 8... Ne7 {[%clk 0:02:54.3]} 9. d4 {[%clk 0:02:43.3]} 9... exd4
{[%clk 0:02:50.8]} 10. cxd4 {[%clk 0:02:44.3]} 10... Bb4 {[%clk 0:02:50.3]} 11.
Bd3 {[%clk 0:02:40.1]} 11... Ng6 {[%clk 0:02:50.9]} 12. Nb3 {[%clk 0:02:17.3]}
12... Re8 {[%clk 0:02:51.4]} 13. Qc2 {[%clk 0:02:11.8]} 13... Bg4 {[%clk
0:02:42.2]} 14. Nfd2 {[%clk 0:02:08.9]} 14... Nf4 {[%clk 0:02:40.1]} 15. f3
{[%clk 0:02:03.4]} 15... Nxd3 {[%clk 0:02:40.9]} 16. Qxd3 {[%clk 0:02:04.1]}
16... Bc8 {[%clk 0:02:42.8]} 17. d5 {[%clk 0:01:52.3]} 17... b6 {[%clk 0:02:29]}
18. Nc4 {[%clk 0:01:52]} 18... Nd7 {[%clk 0:02:14.5]} 19. Nd4 {[%clk 0:01:40.5]}
19... Ba6 {[%clk 0:02:10.7]} 20. b3 {[%clk 0:01:28.8]} 20... Nc5 {[%clk
0:02:09.3]} 21. Qc2 {[%clk 0:01:25.4]} 21... Nd7 {[%clk 0:01:45.9]} 22. Bb2
{[%clk 0:01:24.4]} 22... Bc5 {[%clk 0:01:46.7]} 23. Kh1 {[%clk 0:01:24.3]} 23...
Bxd4 {[%clk 0:01:48.3]} 24. Bxd4 {[%clk 0:01:24.8]} 24... f6 {[%clk 0:01:48.4]}
25. Rfe1 {[%clk 0:01:23.7]} 25... Re7 {[%clk 0:01:45.9]} 26. Ne3 {[%clk
0:01:24.4]} 26... Nc5 {[%clk 0:01:43.2]} 27. Nf5 {[%clk 0:01:24.3]} 27... Rf7
{[%clk 0:01:43.4]} 28. Rad1 {[%clk 0:01:17.6]} 28... Bc8 {[%clk 0:01:42.2]} 29.
Ne3 {[%clk 0:01:14.9]} 29... Bd7 {[%clk 0:01:42.6]} 30. Nc4 {[%clk 0:01:14]}
30... Na6 {[%clk 0:01:41.6]} 31. f4 {[%clk 0:01:13.8]} 31... Bg4 {[%clk
0:01:38.9]} 32. Rc1 {[%clk 0:01:11.4]} 32... Nb4 {[%clk 0:01:39.8]} 33. Qd2
{[%clk 0:01:11.6]} 33... Re7 {[%clk 0:01:39.3]} 34. h3 {[%clk 0:01:07.1]} 34...
Bh5 {[%clk 0:01:39.2]} 35. e5 {[%clk 0:01:04.7]} 35... dxe5 {[%clk 0:01:33.4]}
36. fxe5 {[%clk 0:01:05.7]} 36... fxe5 {[%clk 0:01:05.3]} 37. Rxe5 {[%clk
0:01:00]} 37... Rxe5 {[%clk 0:01:06.3]} 38. Bxe5 {[%clk 0:01:00.4]} 38... Nxd5
{[%clk 0:01:05.3]} 39. Rf1 {[%clk 0:00:54.6]} 39... Bg6 {[%clk 0:00:38.5]} 40.
Qd4 {[%clk 0:00:37.8]} 40... c5 {[%clk 0:00:34.2]} 41. Qg4 {[%clk 0:00:32.7]}
41... Qe7 {[%clk 0:00:32.4]} 42. Bd6 {[%clk 0:00:30.5]} 42... Qe4 {[%clk
0:00:24.9]} 43. Qd7 {[%clk 0:00:27.1]} 43... Nf6 {[%clk 0:00:14.1]} 44. Qc7
{[%clk 0:00:21.9]} 44... Qe2 {[%clk 0:00:10.4]} 45. Rg1 {[%clk 0:00:19.4]} 45...
Be4 {[%clk 0:00:09.7]} 46. Qe7 {[%clk 0:00:15.5]} 46... Re8 {[%clk 0:00:09.5]}
47. Qc7 {[%clk 0:00:15.4]} 47... Qh5 {[%clk 0:00:08.5]} 48. Be5 {[%clk
0:00:12.7]} 48... Qxh3+ {[%clk 0:00:09]} 49. Bh2 {[%clk 0:00:13]} 49... Ng4
{[%clk 0:00:09.6]} 50. Qg3 {[%clk 0:00:13.4]} 50... Qxh2+ {[%clk 0:00:10.9]} 51.
Qxh2 {[%clk 0:00:14.5]} 51... Nf2# {[%clk 0:00:12.8]} 0-1

[Event "*** Titled Tuesday Blitz"]
[Site "Chess.com"]
[Date "2019.12.03"]
[Round "4"]
[White "Squirlolz"]
[Black "Bulldog167"]
[Result "0-1"]
[WhiteElo "2615"]
[BlackElo "2909"]
[TimeControl "180+2"]
[EndTime "13:54:20 PST"]
[Termination "Bulldog167 won by resignation"]

1. e4 {[%clk 0:03:01.9]} 1... e6 {[%clk 0:03:01.1]} 2. d4 {[%clk 0:03:02.7]}
2... d5 {[%clk 0:03:02.2]} 3. Nd2 {[%clk 0:03:02.6]} 3... c5 {[%clk 0:03:01.9]}
4. Ngf3 {[%clk 0:03:02]} 4... cxd4 {[%clk 0:03:02.4]} 5. exd5 {[%clk 0:03:03.2]}
5... Qxd5 {[%clk 0:03:03.2]} 6. Bc4 {[%clk 0:03:04.5]} 6... Qd7 {[%clk
0:03:04.3]} 7. O-O {[%clk 0:03:05.2]} 7... Nc6 {[%clk 0:03:05.1]} 8. Nb3 {[%clk
0:03:06]} 8... a6 {[%clk 0:03:06.4]} 9. a4 {[%clk 0:03:03.9]} 9... Nf6 {[%clk
0:03:05.2]} 10. Qe2 {[%clk 0:02:38.5]} 10... Bd6 {[%clk 0:03:01.1]} 11. Rd1
{[%clk 0:02:37.3]} 11... e5 {[%clk 0:02:32.9]} 12. Nbxd4 {[%clk 0:02:37.1]}
12... Nxd4 {[%clk 0:02:32.6]} 13. Rxd4 {[%clk 0:02:32.4]} 13... Qc7 {[%clk
0:02:21]} 14. Rxd6 {[%clk 0:02:18.7]} 14... Qxd6 {[%clk 0:02:21.6]} 15. b3
{[%clk 0:02:19.2]} 15... Bg4 {[%clk 0:01:41.3]} 16. Ba3 {[%clk 0:02:14.2]} 16...
Qc7 {[%clk 0:01:42.1]} 17. Rd1 {[%clk 0:01:03]} 17... Rd8 {[%clk 0:01:43.1]} 18.
Rxd8+ {[%clk 0:00:27.9]} 18... Kxd8 {[%clk 0:01:45]} 19. Qd2+ {[%clk 0:00:17]}
19... Qd7 {[%clk 0:01:27.9]} 20. Qa5+ {[%clk 0:00:16.6]} 20... Kc8 {[%clk
0:01:24.8]} 21. Nxe5 {[%clk 0:00:12.3]} 21... Qc7 {[%clk 0:00:34.7]} 22. Qxc7+
{[%clk 0:00:10.1]} 22... Kxc7 {[%clk 0:00:36.6]} 23. Nxg4 {[%clk 0:00:09.8]}
23... Nxg4 {[%clk 0:00:37.4]} 24. Bxf7 {[%clk 0:00:11.6]} 24... Rd8 {[%clk
0:00:37.4]} 25. g3 {[%clk 0:00:10.7]} 25... Rd1+ {[%clk 0:00:35]} 26. Kg2 {[%clk
0:00:11.8]} 26... Rd2 {[%clk 0:00:36.6]} 27. Bc5 {[%clk 0:00:07]} 27... b6
{[%clk 0:00:31.9]} 28. h3 {[%clk 0:00:03.4]} 28... bxc5 {[%clk 0:00:25.2]} 29.
hxg4 {[%clk 0:00:04.9]} 29... Rxc2 {[%clk 0:00:26.7]} 30. g5 {[%clk 0:00:03.2]}
30... Kd6 {[%clk 0:00:24]} 31. Bc4 {[%clk 0:00:04]} 31... Ke5 {[%clk 0:00:23.7]}
32. Bxa6 {[%clk 0:00:04.4]} 32... Rb2 {[%clk 0:00:20.5]} 33. Bc4 {[%clk
0:00:05]} 33... Kf5 {[%clk 0:00:21.8]} 34. a5 {[%clk 0:00:04.4]} 34... Kxg5
{[%clk 0:00:22.3]} 35. a6 {[%clk 0:00:05.9]} 35... Rb1 {[%clk 0:00:21.2]} 36.
Bd5 {[%clk 0:00:04.6]} 36... Ra1 {[%clk 0:00:21.5]} 37. Bb7 {[%clk 0:00:05.5]}
37... Kf5 {[%clk 0:00:21.7]} 38. Kf3 {[%clk 0:00:06.6]} 38... Ra3 {[%clk
0:00:21.4]} 39. Ke2 {[%clk 0:00:05.2]} 39... Ke5 {[%clk 0:00:23]} 40. Kd2 {[%clk
0:00:05.7]} 40... Kd4 {[%clk 0:00:23.3]} 41. Kc2 {[%clk 0:00:04.7]} 41... h5
{[%clk 0:00:24.3]} 42. Kb2 {[%clk 0:00:04.1]} 42... Ra5 {[%clk 0:00:25.9]} 43.
Kc2 {[%clk 0:00:03.2]} 43... g5 {[%clk 0:00:26.9]} 44. Kd2 {[%clk 0:00:04.8]}
44... Ra2+ {[%clk 0:00:25.6]} 45. Ke1 {[%clk 0:00:05.1]} 45... Kc3 {[%clk
0:00:21.7]} 46. Kf1 {[%clk 0:00:05.4]} 46... Ra1+ {[%clk 0:00:21.6]} 47. Kg2
{[%clk 0:00:06.5]} 47... Kxb3 {[%clk 0:00:23.2]} 48. f4 {[%clk 0:00:07.9]} 48...
gxf4 {[%clk 0:00:23.7]} 49. gxf4 {[%clk 0:00:09.8]} 49... c4 {[%clk 0:00:21.2]}
50. f5 {[%clk 0:00:11.2]} 50... c3 {[%clk 0:00:22.7]} 51. f6 {[%clk 0:00:12.4]}
51... c2 {[%clk 0:00:24.3]} 52. f7 {[%clk 0:00:10.8]} 52... c1=Q {[%clk
0:00:25.7]} 53. f8=Q {[%clk 0:00:12.4]} 53... Qh1+ {[%clk 0:00:23.1]} 54. Kg3
{[%clk 0:00:07.1]} 54... Rg1+ {[%clk 0:00:24.2]} 55. Kf4 {[%clk 0:00:08.2]}
55... Rf1+ {[%clk 0:00:25.1]} 56. Kg5 {[%clk 0:00:07.7]} 56... Qg1+ {[%clk
0:00:25.2]} 57. Kxh5 {[%clk 0:00:05]} 57... Rxf8 {[%clk 0:00:26.6]} 0-1

[Event "*** Titled Tuesday Blitz"]
[Site "Chess.com"]
[Date "2019.12.03"]
[Round "4"]
[White "MateSchmate"]
[Black "DonBroca"]
[Result "1-0"]
[WhiteElo "2315"]
[BlackElo "2100"]
[TimeControl "180+2"]
[EndTime "13:54:29 PST"]
[Termination "MateSchmate won by checkmate"]

1. e4 {[%clk 0:03:01.9]} 1... c5 {[%clk 0:02:57.5]} 2. Nf3 {[%clk 0:03:02.2]}
2... Nc6 {[%clk 0:02:57.2]} 3. d4 {[%clk 0:03:02.5]} 3... cxd4 {[%clk
0:02:58.4]} 4. Nxd4 {[%clk 0:03:04.4]} 4... g6 {[%clk 0:02:59]} 5. c4 {[%clk
0:03:04]} 5... Bg7 {[%clk 0:02:59.6]} 6. Be3 {[%clk 0:03:05.1]} 6... e6 {[%clk
0:02:57.5]} 7. Nc3 {[%clk 0:03:05.7]} 7... Nge7 {[%clk 0:02:58]} 8. Qd2 {[%clk
0:03:01.9]} 8... O-O {[%clk 0:02:47.8]} 9. Be2 {[%clk 0:02:59.5]} 9... d5 {[%clk
0:02:39.1]} 10. cxd5 {[%clk 0:02:53.3]} 10... exd5 {[%clk 0:02:39.8]} 11. exd5
{[%clk 0:02:53.3]} 11... Nxd5 {[%clk 0:02:35.1]} 12. Nxc6 {[%clk 0:02:54.7]}
12... Bxc3 {[%clk 0:02:35.5]} 13. Nxd8 {[%clk 0:02:49.5]} 13... Bxd2+ {[%clk
0:02:35.7]} 14. Bxd2 {[%clk 0:02:51.4]} 14... Rxd8 {[%clk 0:02:36.3]} 15. O-O
{[%clk 0:02:44.4]} 15... Bf5 {[%clk 0:02:29.5]} 16. Rac1 {[%clk 0:02:45]} 16...
Nb6 {[%clk 0:02:20.7]} 17. Be3 {[%clk 0:02:40.4]} 17... Re8 {[%clk 0:02:13.5]}
18. Bb5 {[%clk 0:02:39.8]} 18... Re7 {[%clk 0:02:09.8]} 19. Bg5 {[%clk
0:02:37.9]} 19... Re5 {[%clk 0:02:04.6]} 20. a4 {[%clk 0:01:57.2]} 20... a6
{[%clk 0:02:02.5]} 21. f4 {[%clk 0:01:54.2]} 21... Re3 {[%clk 0:01:46.9]} 22.
Bc4 {[%clk 0:01:48.3]} 22... Nxc4 {[%clk 0:01:32.9]} 23. Rxc4 {[%clk 0:01:50.2]}
23... Bd3 {[%clk 0:01:33.4]} 24. Rc3 {[%clk 0:01:51.2]} 24... Rae8 {[%clk
0:01:20.1]} 25. Rd1 {[%clk 0:01:44.7]} 25... Bf5 {[%clk 0:01:06.1]} 26. Rxe3
{[%clk 0:01:43.5]} 26... Rxe3 {[%clk 0:01:06.5]} 27. Bf6 {[%clk 0:01:39.4]}
27... Kf8 {[%clk 0:00:53.5]} 28. Kf2 {[%clk 0:01:29.2]} 28... Re8 {[%clk
0:00:48.8]} 29. h3 {[%clk 0:01:25.3]} 29... h5 {[%clk 0:00:48]} 30. Rh1 {[%clk
0:01:23.2]} 30... Bd3 {[%clk 0:00:41]} 31. g4 {[%clk 0:01:22.6]} 31... Re2+
{[%clk 0:00:38.8]} 32. Kg3 {[%clk 0:01:23]} 32... Be4 {[%clk 0:00:32.8]} 33. Rd1
{[%clk 0:01:21.5]} 33... Bc6 {[%clk 0:00:25]} 34. a5 {[%clk 0:01:13.7]} 34...
Re3+ {[%clk 0:00:17.2]} 35. Kh4 {[%clk 0:01:12.5]} 35... hxg4 {[%clk 0:00:16]}
36. hxg4 {[%clk 0:01:12.5]} 36... Re2 {[%clk 0:00:16.7]} 37. Kg5 {[%clk
0:01:12.5]} 37... Rc2 {[%clk 0:00:13.7]} 38. Rd8+ {[%clk 0:01:08.1]} 38... Be8
{[%clk 0:00:14.6]} 39. Bc3 {[%clk 0:00:57.3]} 39... Ke7 {[%clk 0:00:11]} 40.
Bf6+ {[%clk 0:00:58.2]} 40... Kf8 {[%clk 0:00:12.2]} 41. Rd3 {[%clk 0:00:59.2]}
41... Rc5+ {[%clk 0:00:10.1]} 42. Kh4 {[%clk 0:00:48.8]} 42... Rxa5 {[%clk
0:00:08.2]} 43. Rd8 {[%clk 0:00:35.1]} 43... Rb5 {[%clk 0:00:06.7]} 44. Kg3
{[%clk 0:00:25.6]} 44... Ra5 {[%clk 0:00:07.1]} 45. Kf3 {[%clk 0:00:23.5]} 45...
Rb5 {[%clk 0:00:08.3]} 46. Ke4 {[%clk 0:00:24.6]} 46... Ra5 {[%clk 0:00:08.9]}
47. Kd3 {[%clk 0:00:25.6]} 47... Rb5 {[%clk 0:00:09.9]} 48. Kc4 {[%clk
0:00:25.2]} 48... Ra5 {[%clk 0:00:09.2]} 49. b4 {[%clk 0:00:26]} 49... Rb5
{[%clk 0:00:10.1]} 50. Rb8 {[%clk 0:00:22.4]} 50... Rb6 {[%clk 0:00:10.3]} 51.
Bd4 {[%clk 0:00:19.8]} 51... Rc6+ {[%clk 0:00:10.4]} 52. Bc5+ {[%clk 0:00:21.1]}
52... Kg7 {[%clk 0:00:08.9]} 53. Rxe8 {[%clk 0:00:22.2]} 53... b5+ {[%clk
0:00:10.1]} 54. Kd5 {[%clk 0:00:22.9]} 54... Rc7 {[%clk 0:00:07.5]} 55. Bd4+
{[%clk 0:00:24.1]} 55... Kh7 {[%clk 0:00:04.1]} 56. Rh8# {[%clk 0:00:24.7]} 1-0